fUST/lending_fUST_20240104
["ID","MTS","AMOUNT","RATE_DAILY","PERIOD"]
[310129428,1704378647223,-500.0,0.0003863,7]
[310129430,1704378647245,-500.0,0.0003863,7]
[310129432,1704378647263,-500.45550341,0.0003863,7]
[310129433,1704378647272,-500.0,0.0003863,7]
[310129435,1704378647281,-500.0,0.0003863,7]
[310129437,1704378647291,-500.0,0.0003863,7]
[310129439,1704378647301,-500.0,0.0003863,7]
[310129441,1704378647311,-500.0,0.0003863,7]
[310129442,1704378647320,-500.0,0.0003863,7]
[310129444,1704378647329,-500.0,0.0003863,7]
[310129446,1704378647338,-500.0,0.0003863,7]
[310129448,1704378647347,-500.0,0.0003863,7]
[310129450,1704378647357,-500.0,0.0003863,7]
[310129452,1704378647367,-500.0,0.0003863,7]
[310129453,1704378647376,-676.9,0.0003863,7]
[310129455,1704378647385,-602.61,0.0003863,7]
[310129457,1704378647395,-500.0,0.0003863,7]
[310129459,1704378647404,-500.0,0.0003863,7]
[310129460,1704378647413,-500.0,0.0003863,7]
[310129462,1704378647422,-500.0,0.0003863,7]
[310129464,1704378647432,-184.42609289,0.0003863,7]
[310129466,1704378647441,-500.0,0.0003863,7]
[310129467,1704378647450,-785.56,0.0003863,7]
[310129469,1704378647459,-601.84,0.0003863,7]
[310129471,1704378647469,-500.0,0.0003863,7]
[310129473,1704378647479,-500.0,0.0003863,7]
[310129475,1704378647488,-500.0,0.0003863,7]
[310129477,1704378647497,-153.38327678,0.0003863,7]
[310129478,1704378647507,-500.0,0.0003863,7]
[310129480,1704378647516,-500.0,0.0003863,7]
[310129482,1704378647525,-500.0,0.0003863,7]
[310129484,1704378647534,-500.0,0.0003863,7]
[310129486,1704378647543,-222.33405859,0.0003863,7]
[310129487,1704378647552,-765.9,0.0003863,7]
[310129489,1704378647562,-563.04889974,0.0003863,7]
[310129491,1704378647571,-500.0,0.0003863,7]
[310129493,1704378647581,-500.0,0.0003863,7]
[310129495,1704378647590,-500.0,0.0003863,7]
[310129497,1704378647599,-500.0,0.0003863,7]
[310129498,1704378647608,-500.0,0.0003863,7]
[310129500,1704378647617,-500.0,0.0003863,7]
[310129502,1704378647626,-500.0,0.0003863,7]
[310129504,1704378647635,-500.0,0.0003863,7]
[310129506,1704378647645,-500.0,0.0003863,7]
[310129507,1704378647654,-500.0,0.0003863,7]
[310129509,1704378647663,-500.0,0.0003863,7]
[310129511,1704378647673,-500.0,0.0003863,7]
[310129513,1704378647683,-244.925021,0.0003863,7]
[310129515,1704378647692,-998.67,0.0003863,7]
[310129517,1704378647701,-500.0,0.0003863,7]
[310129518,1704378647711,-2214.33,0.0003863,7]
[310129520,1704378647725,-504.28,0.0003863,7]
[310129522,1704378647734,-500.0,0.0003863,7]
[310129524,1704378647743,-500.0,0.0003863,7]
[310129526,1704378647752,-500.0,0.0003863,7]
[310129528,1704378647763,-500.0,0.0003863,7]
[310129530,1704378647771,-500.0,0.0003863,7]
[310129531,1704378647781,-500.0,0.0003863,7]
[310129533,1704378647790,-500.0,0.0003863,7]
[310129535,1704378647800,-938.14,0.0003863,7]
[310129537,1704378647809,-500.0,0.0003863,7]
[310129538,1704378647818,-500.0,0.0003863,7]
[310129540,1704378647828,-500.0,0.0003863,7]
[310129542,1704378647838,-500.0,0.0003863,7]
[310129544,1704378647847,-514.84574654,0.0003863,7]
[310129546,1704378647856,-500.0,0.0003863,7]
[310129548,1704378647865,-502.74931937,0.0003863,7]
[310129549,1704378647874,-500.0,0.0003863,7]
[310129551,1704378647884,-528.44747831,0.0003863,7]
[310129553,1704378647894,-200.0,0.0003863,7]
[310129555,1704378647904,-590.87,0.0003863,7]
[310129557,1704378647912,-500.0,0.0003863,7]
[310129558,1704378647922,-500.0,0.0003863,7]
[310129560,1704378647931,-500.0,0.0003863,7]
[310129562,1704378647940,-535.62451823,0.0003863,7]
[310129564,1704378647950,-500.0,0.0003863,7]
[310129566,1704378647958,-500.0,0.0003863,7]
[310129567,1704378647967,-500.0,0.0003863,7]
[310129569,1704378647977,-324.80123354,0.0003863,7]
[310129571,1704378647987,-500.0,0.0003863,7]
[310129573,1704378647996,-500.0,0.0003863,7]
[310129575,1704378648005,-519.95941729,0.0003863,7]
[310129577,1704378648014,-153.26032092,0.0003863,7]
[310129578,1704378648023,-500.0,0.0003863,7]
[310129580,1704378648032,-500.0,0.0003863,7]
[310129582,1704378648041,-500.0,0.0003863,7]
[310129584,1704378648050,-500.0,0.0003863,7]
[310129589,1704378648100,-232.10095586,0.0003863,7]
[310129591,1704378648114,-500.0,0.0003863,7]
[310129593,1704378648123,-243.68851885,0.0003863,7]
[310129595,1704378648132,-500.0,0.0003863,7]
[310129597,1704378648142,-492.32192926,0.0003863,2]
[310129599,1704378648151,-501.96916016,0.0003863,7]
[310129600,1704378648160,-500.0,0.0003863,7]
[310129602,1704378648170,-1000.0,0.0003863,5]
[310129604,1704378648179,-500.0,0.0003863,7]
[310129606,1704378648188,-500.0,0.0003863,7]
[310129608,1704378648197,-500.0,0.0003863,7]
[310129609,1704378648206,-500.0,0.0003863,7]
[310129611,1704378648215,-500.0,0.0003863,7]
[310129613,1704378648224,-936.46,0.0003863,7]
[310129615,1704378648234,-2773.84,0.0003863,7]
[310129617,1704378648243,-500.0,0.0003863,7]
[310129619,1704378648251,-500.0,0.0003863,7]
[310129620,1704378648260,-500.0,0.0003863,7]
[310129622,1704378648269,-500.0,0.0003863,7]
[310129624,1704378648278,-500.0,0.0003863,7]
[310129626,1704378648287,-500.0,0.0003863,7]
[310129628,1704378648296,-500.0,0.0003863,7]
[310129629,1704378648307,-548.88,0.0003863,7]
[310129631,1704378648317,-500.0,0.0003863,7]
[310129633,1704378648326,-3363.18,0.0003863,7]
[310129635,1704378648335,-500.0,0.0003863,7]
[310129637,1704378648345,-207.85057803,0.0003863,7]
[310129638,1704378648353,-500.0,0.0003863,7]
[310129640,1704378648362,-500.0,0.0003863,7]
[310129642,1704378648371,-500.0,0.0003863,7]
[310129643,1704378648381,-500.0,0.0003863,7]
[310129644,1704378648390,-500.0,0.0003863,7]
[310129646,1704378648399,-510.00128145,0.0003863,7]
[310129648,1704378648408,-500.0,0.0003863,7]
[310129649,1704378648417,-500.0,0.0003863,7]
[310129651,1704378648426,-500.0,0.0003863,7]
[310129653,1704378648435,-196.02475645,0.0003863,7]
[310129655,1704378648444,-500.0,0.0003863,7]
[310129656,1704378648453,-500.0,0.0003863,7]
[310129658,1704378648462,-501.7489932,0.0003863,7]
[310129660,1704378648471,-500.0,0.0003863,7]
[310129662,1704378648480,-1029.28,0.0003863,7]
[310129664,1704378648489,-500.0,0.0003863,7]
[310129666,1704378648498,-500.0,0.0003863,7]
[310129668,1704378648507,-500.0,0.0003863,7]
[310129669,1704378648517,-500.0,0.0003863,7]
[310129671,1704378648526,-930.59,0.0003863,7]
[310129673,1704378648536,-500.0,0.0003863,7]
[310129675,1704378648546,-7189.88,0.0003863,7]
[310129677,1704378648556,-807.95,0.0003863,7]
[310129679,1704378648566,-500.0,0.0003863,7]
[310129681,1704378648575,-2622.15,0.0003863,7]
[310129682,1704378648584,-5000.0,0.0003863,10]
[310129683,1704378648593,-1640.87,0.0003863,7]
[310129684,1704378648603,-3714.82,0.0003863,7]
[310129685,1704378648612,-500.0,0.0003863,7]
[310129686,1704378648621,-575.08,0.0003863,2]
[310129688,1704378648630,-501.94765113,0.0003863,7]
[310129690,1704378648640,-500.0,0.0003863,7]
[310129691,1704378648650,-3757.04,0.0003863,7]
[310129693,1704378648659,-500.0,0.0003863,7]
[310129695,1704378648669,-500.0,0.0003863,7]
[310129697,1704378648679,-499.47626382,0.0003863,7]
[310129698,1704378648688,-500.0,0.0003863,7]
[310129699,1704378648698,-500.0,0.0003863,7]
[310129700,1704378648708,-500.0,0.0003863,7]
[310129701,1704378648719,-1389.21,0.0003863,7]
[310129702,1704378648728,-500.0,0.0003863,7]
[310129703,1704378648738,-928.48,0.0003863,7]
[310129704,1704378648747,-279.69682944,0.0003863,7]
[310129705,1704378648757,-500.0,0.0003863,7]
[310129706,1704378648766,-501.05172239,0.0003863,7]
[310129707,1704378648776,-500.0,0.0003863,7]
[310129708,1704378648786,-500.0,0.0003863,7]
[310129709,1704378648795,-500.0,0.0003863,7]
[310129710,1704378648804,-500.0,0.0003863,7]
[310129711,1704378648814,-945.75,0.0003863,7]
[310129712,1704378648824,-500.0,0.0003863,7]
[310129713,1704378648833,-500.0,0.0003863,7]
[310129714,1704378648843,-500.0,0.0003863,7]
[310129715,1704378648894,-465.57299228,0.0003863,7]
[310129716,1704378648907,-867.88,0.0003863,7]
[310129717,1704378648916,-500.0,0.0003863,7]
[310129718,1704378648926,-500.0,0.0003863,7]
[310129719,1704378648936,-501.34048689,0.0003863,7]
[310129720,1704378648945,-12109.38,0.0003863,7]
[310129721,1704378648955,-3889.06,0.0003863,7]
[310129722,1704378648964,-508.78543536,0.0003863,7]
[310129723,1704378648973,-500.0,0.0003863,7]
[310129724,1704378648983,-777.49,0.0003863,7]
[310129725,1704378648993,-500.0,0.0003863,7]
[310129726,1704378649003,-505.99376103,0.0003863,7]
[310129727,1704378649013,-500.0,0.0003863,7]
[310129728,1704378649022,-500.0,0.0003863,7]
[310129729,1704378649031,-247.2489728,0.0003863,7]
[310129730,1704378649040,-500.0,0.0003863,7]
[310129731,1704378649049,-1635.96,0.0003863,7]
[310129732,1704378649058,-500.0,0.0003863,7]
[310129733,1704378649067,-549.02777613,0.0003863,7]
[310129734,1704378649077,-500.0,0.0003863,7]
[310129735,1704378649086,-500.0,0.0003863,7]
[310129736,1704378649094,-500.0,0.0003863,7]
[310129737,1704378649104,-500.0,0.0003863,7]
[310129738,1704378649113,-28505.95,0.0003863,7]
[310129739,1704378649122,-500.0,0.0003863,7]
[310129740,1704378649131,-46385.68,0.0003863,3]
[310129741,1704378649140,-501.04483488,0.0003863,7]
[310129742,1704378649148,-500.0,0.0003863,7]
[310129743,1704378649158,-500.0,0.0003863,7]
[310129744,1704378649168,-500.0,0.0003863,7]
[310129745,1704378649178,-500.0,0.0003863,7]
[310129746,1704378649187,-500.0,0.0003863,7]
[310129747,1704378649196,-513.00256286,0.0003863,7]
[310129748,1704378649206,-500.0,0.0003863,7]
[310129749,1704378649215,-500.0,0.0003863,7]
[310129750,1704378649224,-220.0,0.0003863,2]
[310129751,1704378649233,-500.0,0.0003863,7]
[310129752,1704378649246,-500.0,0.0003863,7]
[310129753,1704378649267,-500.0,0.0003863,7]
[310129754,1704378649283,-500.0,0.0003863,7]
[310129755,1704378649304,-500.0,0.0003863,7]
[310129756,1704378649320,-174.92049465,0.0003863,7]
[310129757,1704378649339,-3807.74,0.0003863,7]
[310129758,1704378649357,-500.0,0.0003863,7]
[310129759,1704378649372,-500.0,0.0003863,7]
[310129760,1704378649391,-230.70828406,0.0003863,7]
[310129761,1704378649408,-500.0,0.0003863,7]
[310129762,1704378649425,-501.0357112,0.0003863,7]
[310129763,1704378649447,-1215.01,0.0003863,7]
[310129764,1704378649459,-527.24006878,0.0003863,7]
[310129765,1704378649474,-501.74184182,0.0003863,3]
[310129766,1704378649490,-500.0,0.0003863,7]
[310129767,1704378649502,-500.0,0.0003863,7]
[310129768,1704378649517,-500.0,0.0003863,7]
[310129769,1704378649531,-500.0,0.0003863,7]
[310129770,1704378649546,-524.36763937,0.0003863,7]
[310129771,1704378649560,-500.0,0.0003863,7]
[310129772,1704378649574,-501.88365989,0.0003863,7]
[310129773,1704378649588,-836.7,0.0003863,7]
[310129774,1704378649601,-7673.44,0.0003863,7]
[310129775,1704378649616,-500.0,0.0003863,7]
[310129776,1704378649630,-500.0,0.0003863,7]
[310129777,1704378649645,-500.0,0.0003863,7]
[310129778,1704378649658,-502.34988962,0.0003863,7]
[310129779,1704378649673,-500.0,0.0003863,7]
[310129780,1704378649686,-1229.89,0.0003863,7]
[310129781,1704378649701,-500.0,0.0003863,7]
[310129782,1704378649715,-491.40075675,0.0003863,7]
[310129783,1704378649732,-500.0,0.0003863,7]
[310129784,1704378649747,-500.0,0.0003863,7]
[310129785,1704378649762,-500.0,0.0003863,7]
[310129786,1704378649777,-500.0,0.0003863,7]
[310129787,1704378649791,-500.0,0.0003863,7]
[310129788,1704378649806,-500.0,0.0003863,7]
[310129789,1704378649888,-500.0,0.0003863,7]
[310129790,1704378649902,-500.0,0.0003863,7]
[310129791,1704378649913,-500.0,0.0003863,7]
[310129792,1704378649924,-500.0,0.0003863,7]
[310129793,1704378649933,-500.0,0.0003863,2]
[310129794,1704378649942,-2378.79,0.0003863,7]
[310129795,1704378649952,-500.0,0.0003863,7]
[310129796,1704378649962,-500.0,0.0003863,7]
[310129797,1704378649971,-151.0,0.0003863,2]
[310129798,1704378649981,-294.28293675,0.0003863,2]
[310129799,1704378649990,-250.38966,0.0003863,2]
[310129800,1704378649999,-250.38966,0.0003863,2]
[310129801,1704378650009,-250.38966,0.0003863,2]
[310129802,1704378650019,-250.38966,0.0003863,2]
[310129803,1704378650029,-250.38966,0.0003863,2]
[310129804,1704378650039,-250.38966,0.0003863,2]
[310129805,1704378650048,-229.50322,0.0003863,2]
[310129806,1704378650058,-229.50322,0.0003863,2]
[310129807,1704378650067,-229.50322,0.0003863,2]
[310129808,1704378650076,-229.50322,0.0003863,2]
[310129809,1704378650085,-1083.0,0.0003874,2]
[310129810,1704378650094,-150.77949282,0.00038823,2]
[310129811,1704378650103,-502.84597761,0.00038904,7]
[310129812,1704378650112,-500.0,0.00038904,7]
[310129813,1704378650121,-500.0,0.00038904,7]
[310129814,1704378650130,-500.0,0.00038904,7]
[310129815,1704378650139,-500.0,0.00038904,7]
[310129816,1704378650149,-500.0,0.00038904,7]
[310129817,1704378650157,-500.0,0.00038904,7]
[310129818,1704378650167,-500.0,0.00038904,7]
[310129819,1704378650177,-500.0,0.00038904,7]
[310129820,1704378650187,-500.0,0.00038904,7]
[310129821,1704378650196,-500.0,0.00038904,7]
[310129822,1704378650205,-507.63725427,0.00038904,7]
[310129823,1704378650214,-500.0,0.00038904,7]
[310129824,1704378650223,-500.0,0.00038904,7]
[310129825,1704378650232,-500.0,0.00038904,7]
[310129826,1704378650241,-773.72,0.00038904,7]
[310129827,1704378650251,-512.51115803,0.00038904,7]
[310129828,1704378650260,-500.0,0.00038904,7]
[310129829,1704378650269,-345.03964036,0.00038904,7]
[310129830,1704378650279,-500.0,0.00038904,7]
[310129831,1704378650288,-525.27283003,0.00038904,7]
[310129832,1704378650298,-500.0,0.00038904,7]
[310129833,1704378650307,-516.47422852,0.00038904,30]
[310129834,1704378650317,-500.0,0.00038904,7]
[310129835,1704378650326,-560.84728984,0.00038904,7]
[310129836,1704378650336,-500.0,0.00038904,7]
[310129837,1704378650345,-500.0,0.00038904,7]
[310129838,1704378650355,-500.0,0.00038904,7]
[310129839,1704378650365,-500.0,0.00038904,7]
[310129840,1704378650374,-500.0,0.00038904,7]
[310129841,1704378650384,-500.0,0.00038904,7]
[310129842,1704378650394,-933.65,0.00038904,7]
[310129843,1704378650403,-500.0,0.00038904,7]
[310129844,1704378650412,-506.00434185,0.00038904,7]
[310129845,1704378650423,-500.0,0.00038904,7]
[310129846,1704378650432,-244.19954149,0.00038904,7]
[310129847,1704378650442,-533.23208133,0.00038904,7]
[310129848,1704378650451,-726.47,0.00038904,7]
[310129849,1704378650460,-500.0,0.00038904,7]
[310129850,1704378650470,-921.88,0.00038904,7]
[310129851,1704378650480,-500.0,0.00038904,7]
[310129852,1704378650489,-500.0,0.00038904,7]
[310129853,1704378650499,-500.0,0.00038904,7]
[310129854,1704378650510,-500.0,0.00038904,7]
[310129855,1704378650519,-500.0,0.00038904,7]
[310129856,1704378650529,-571.84505234,0.00038904,7]
[310129857,1704378650538,-500.0,0.00038904,7]
[310129858,1704378650547,-500.0,0.00038904,7]
[310129859,1704378650557,-502.2681211,0.00038904,7]
[310129860,1704378650567,-500.0,0.00038904,7]
[310129861,1704378650577,-500.0,0.00038904,7]
[310129862,1704378650587,-500.0,0.00038904,7]
[310129863,1704378650597,-500.0,0.00038904,7]
[310129864,1704378650607,-562.71,0.00038904,7]
[310129865,1704378650616,-500.0,0.00038904,7]
[310129866,1704378650626,-500.0,0.00038904,7]
[310129867,1704378650636,-500.0,0.00038904,7]
[310129868,1704378650645,-311.17754081,0.00038904,7]
[310129869,1704378650655,-500.0,0.00038904,7]
[310129870,1704378650664,-500.0,0.00038904,7]
[310129871,1704378650675,-624.2989346,0.00038904,7]
[310129872,1704378650685,-728.9,0.00038904,7]
[310129873,1704378650694,-500.0,0.00038904,7]
[310129874,1704378650704,-500.0,0.00038904,7]
[310129875,1704378650713,-500.0,0.00038904,7]
[310129876,1704378650723,-500.0,0.00038904,7]
[310129877,1704378650732,-500.0,0.00038904,7]
[310129878,1704378650742,-500.0,0.00038904,7]
[310129879,1704378650752,-500.0,0.00038904,7]
[310129880,1704378650762,-500.0,0.00038904,7]
[310129881,1704378650771,-516.60431765,0.00038904,7]
[310129882,1704378650780,-500.0,0.00038904,7]
[310129883,1704378650790,-500.0,0.00038904,7]
[310129884,1704378650800,-500.0,0.00038904,7]
[310129885,1704378650809,-500.0,0.00038904,7]
[310129886,1704378650819,-416.40934462,0.00038904,7]
[310129887,1704378650829,-596.820312,0.00038904,7]
[310129888,1704378650838,-500.0,0.00038904,7]
[310129889,1704378650848,-500.0,0.00038904,7]
[310129890,1704378650857,-500.0,0.00038904,7]
[310129891,1704378650867,-460.46089387,0.00038904,7]
[310129892,1704378650876,-500.0,0.00038904,7]
[310129893,1704378650886,-500.0,0.00038904,7]
[310129894,1704378650896,-500.0,0.00038904,7]
[310129895,1704378650905,-500.0,0.00038904,7]
[310129896,1704378650965,-676.9,0.00038904,7]
[310129897,1704378650975,-602.61,0.00038904,7]
[310129898,1704378650984,-500.0,0.00038904,7]
[310129899,1704378650994,-500.0,0.00038904,7]
[310129900,1704378651003,-500.0,0.00038904,7]
[310129901,1704378651013,-500.0,0.00038904,7]
[310129902,1704378651022,-500.0,0.00038904,7]
[310129903,1704378651032,-785.56,0.00038904,7]
[310129904,1704378651041,-601.84,0.00038904,7]
[310129905,1704378651051,-500.0,0.00038904,7]
[310129906,1704378651060,-500.0,0.00038904,7]
[310129907,1704378651070,-500.0,0.00038904,7]
[310129908,1704378651079,-500.0,0.00038904,7]
[310129909,1704378651089,-500.0,0.00038904,7]
[310129910,1704378651098,-500.0,0.00038904,7]
[310129911,1704378651107,-500.0,0.00038904,7]
[310129912,1704378651117,-765.9,0.00038904,7]
[310129913,1704378651127,-500.0,0.00038904,7]
[310129914,1704378651136,-500.0,0.00038904,7]
[310129915,1704378651146,-500.0,0.00038904,7]
[310129916,1704378651155,-500.0,0.00038904,7]
[310129917,1704378651164,-500.0,0.00038904,7]
[310129918,1704378651174,-500.0,0.00038904,7]
[310129919,1704378651184,-500.0,0.00038904,7]
[310129920,1704378651193,-500.0,0.00038904,7]
[310129921,1704378651202,-500.0,0.00038904,7]
[310129922,1704378651212,-500.0,0.00038904,7]
[310129923,1704378651221,-500.0,0.00038904,7]
[310129924,1704378651231,-500.0,0.00038904,7]
[310129925,1704378651241,-998.67,0.00038904,7]
[310129926,1704378651251,-421.75949392,0.00038904,7]
[310129927,1704378651260,-2214.33,0.00038904,7]
[310129928,1704378651270,-504.28,0.00038904,7]
[310129929,1704378651279,-500.0,0.00038904,7]
[310129930,1704378651289,-500.0,0.00038904,7]
[310129931,1704378651298,-500.0,0.00038904,7]
[310129932,1704378651308,-501.81811394,0.00038904,7]
[310129933,1704378651317,-500.0,0.00038904,7]
[310129934,1704378651327,-500.0,0.00038904,7]
[310129935,1704378651337,-500.0,0.00038904,7]
[310129936,1704378651347,-938.14,0.00038904,7]
[310129937,1704378651356,-500.0,0.00038904,7]
[310129938,1704378651366,-500.0,0.00038904,7]
[310129939,1704378651375,-500.0,0.00038904,7]
[310129940,1704378651385,-500.0,0.00038904,7]
[310129941,1704378651397,-500.0,0.00038904,7]
[310129942,1704378651406,-500.0,0.00038904,7]
[310129943,1704378651415,-205.83409689,0.00038904,7]
[310129944,1704378651426,-590.87,0.00038904,7]
[310129945,1704378651436,-338.25803684,0.00038904,7]
[310129946,1704378651446,-500.0,0.00038904,7]
[310129947,1704378651455,-500.0,0.00038904,7]
[310129948,1704378651465,-500.0,0.00038904,7]
[310129949,1704378651474,-500.0,0.00038904,7]
[310129950,1704378651484,-500.0,0.00038904,7]
[310129951,1704378651493,-500.0,0.00038904,7]
[310129952,1704378651503,-500.0,0.00038904,7]
[310129953,1704378651512,-500.0,0.00038904,7]
[310129954,1704378651522,-500.0,0.00038904,7]
[310129955,1704378651531,-293.33550958,0.00038904,7]
[310129956,1704378651541,-500.0,0.00038904,7]
[310129957,1704378651551,-500.0,0.00038904,7]
[310129958,1704378651560,-500.0,0.00038904,7]
[310129959,1704378651569,-1000.0,0.00038904,5]
[310129960,1704378651579,-500.0,0.00038904,7]
[310129961,1704378651590,-500.0,0.00038904,7]
[310129962,1704378651599,-500.0,0.00038904,7]
[310129963,1704378651609,-195.19724746,0.00038904,7]
[310129964,1704378651618,-500.0,0.00038904,7]
[310129965,1704378651628,-500.0,0.00038904,7]
[310129966,1704378651637,-936.46,0.00038904,7]
[310129967,1704378651647,-2773.84,0.00038904,7]
[310129968,1704378651657,-500.0,0.00038904,7]
[310129969,1704378651666,-500.0,0.00038904,7]
[310129970,1704378651676,-500.0,0.00038904,7]
[310129971,1704378651685,-500.0,0.00038904,7]
[310129972,1704378651694,-500.0,0.00038904,7]
[310129973,1704378651704,-500.0,0.00038904,7]
[310129974,1704378651714,-611.55320608,0.00038904,7]
[310129975,1704378651724,-548.88,0.00038904,7]
[310129976,1704378651737,-500.0,0.00038904,7]
[310129977,1704378651749,-3363.18,0.00038904,7]
[310129978,1704378651758,-500.0,0.00038904,7]
[310129979,1704378651768,-500.0,0.00038904,7]
[310129980,1704378651779,-500.0,0.00038904,7]
[310129981,1704378651788,-500.0,0.00038904,7]
[310129982,1704378651798,-501.34867279,0.00038904,7]
[310129983,1704378651807,-541.21408276,0.00038904,7]
[310129984,1704378651818,-517.28879041,0.00038904,7]
[310129985,1704378651828,-240.17936533,0.00038904,7]
[310129986,1704378651838,-500.0,0.00038904,7]
[310129987,1704378651848,-503.88246748,0.00038904,7]
[310129988,1704378651858,-186.45534578,0.00038904,7]
[310129989,1704378651867,-1029.28,0.00038904,7]
[310129990,1704378651877,-500.0,0.00038904,7]
[310129991,1704378651886,-503.21043275,0.00038904,7]
[310129992,1704378651896,-500.0,0.00038904,7]
[310129993,1704378651905,-500.0,0.00038904,7]
[310129994,1704378651964,-500.0,0.00038904,7]
[310129995,1704378651974,-930.59,0.00038904,7]
[310129996,1704378651983,-500.0,0.00038904,7]
[310129997,1704378651992,-7189.88,0.00038904,7]
[310129998,1704378652002,-807.95,0.00038904,7]
[310129999,1704378652012,-500.0,0.00038904,7]
[310130000,1704378652021,-2622.15,0.00038904,7]
[310130001,1704378652031,-5000.0,0.00038904,10]
[310130002,1704378652040,-1640.87,0.00038904,7]
[310130003,1704378652050,-3714.82,0.00038904,7]
[310130004,1704378652059,-500.0,0.00038904,7]
[310130005,1704378652070,-575.08,0.00038904,2]
[310130006,1704378652080,-500.0,0.00038904,7]
[310130007,1704378652090,-3757.04,0.00038904,7]
[310130008,1704378652099,-500.0,0.00038904,7]
[310130009,1704378652110,-500.0,0.00038904,7]
[310130010,1704378652120,-500.0,0.00038904,7]
[310130011,1704378652130,-500.0,0.00038904,7]
[310130012,1704378652139,-500.0,0.00038904,7]
[310130013,1704378652149,-1389.21,0.00038904,7]
[310130014,1704378652158,-500.0,0.00038904,7]
[310130015,1704378652170,-928.48,0.00038904,7]
[310130016,1704378652179,-500.0,0.00038904,7]
[310130017,1704378652189,-500.0,0.00038904,7]
[310130018,1704378652198,-500.0,0.00038904,7]
[310130019,1704378652207,-500.0,0.00038904,7]
[310130020,1704378652217,-945.75,0.00038904,7]
[310130021,1704378652226,-500.0,0.00038904,7]
[310130022,1704378652237,-219.00598534,0.00038904,7]
[310130023,1704378652246,-500.0,0.00038904,7]
[310130024,1704378652256,-867.88,0.00038904,7]
[310130025,1704378652266,-500.0,0.00038904,7]
[310130026,1704378652275,-502.95259749,0.00038904,7]
[310130027,1704378652285,-12109.38,0.00038904,7]
[310130028,1704378652294,-3889.06,0.00038904,7]
[310130029,1704378652306,-521.25997661,0.00038904,7]
[310130030,1704378652316,-777.49,0.00038904,7]
[310130031,1704378652325,-500.0,0.00038904,7]
[310130032,1704378652336,-219.32438583,0.00038904,7]
[310130033,1704378652345,-501.35968135,0.00038904,7]
[310130034,1704378652355,-500.0,0.00038904,7]
[310130035,1704378652365,-1635.96,0.00038904,7]
[310130036,1704378652374,-500.0,0.00038904,7]
[310130037,1704378652384,-500.0,0.00038904,7]
[310130038,1704378652393,-500.0,0.00038904,7]
[310130039,1704378652403,-500.0,0.00038904,7]
[310130040,1704378652412,-28505.95,0.00038904,7]
[310130041,1704378652423,-500.0,0.00038904,7]
[310130042,1704378652433,-46385.68,0.00038904,3]
[310130043,1704378652442,-500.0,0.00038904,7]
[310130044,1704378652452,-234.79234472,0.00038904,7]
[310130045,1704378652461,-500.0,0.00038904,7]
[310130046,1704378652470,-500.0,0.00038904,7]
[310130047,1704378652480,-500.0,0.00038904,7]